[Event "European Women-ch 2023"]
[Site "Petrovac"]
[Date "2023.03.19"]
[Round "2.2"]
[White "Unuk, Laura"]
[Black "Osmak, Yuliia"]
[Result "1/2-1/2"]
[ECO "A20"]
[WhiteElo "2297"]
[BlackElo "2445"]
[Annotator "TA"]
[PlyCount "175"]
[EventDate "2023.03.15"]
[EventType "swiss"]
[EventCountry "MNE"]
[SourceTitle "playchess.com"]
[Source "ChessBase"]
[SourceQuality "1"]
[TimeControl "40/5400+30:1800+30"]

{[%evp 9,175,17,14,0,0,0,-4,0,-12,-14,-4,-10,1,-20,10,14,14,14,14,10,19,0,0,0,0,0,0,-17,-20,-28,-22,-21,-22,-37,-39,-54,-35,-33,-28,-41,54,-69,-85,-73,-81,-212,-78,-114,-102,-126,-83,-81,-75,-78,-78,-83,-14,-99,-89,-88,-86,-84,-90,-127,-127,-128,-128,-168,-176,-176,-168,-168,-168,-167,-166,-166,-159,-159,-159,-153,-126,-131,-17,-17,-17,-17,-17,-17,-17,-80,-80,-80,-80,-83,-83,-83,-83,-83,-83,-83,-83,-120,-120,-120,-120,-120,-120,-120,-120,-120,-120,-120,-120,-120,-120,-120,-120,-120,-120,-120,-120,-120,-120,-120,-120,-120,-120,-120,-120,-120,-120,-120,-80,-80,-80,-80,-80,-80,-80,-80,-80,-80,-80,-80,-80,-80,0,0,0,0,0,0,0,0,0,0,0,0,0,0,0,0,0,0,0,0,0,0]} 1. c4 {[%emt 0:00:08]} e5 {[%emt 0:00:11]} 2. g3 {[%emt 0:00:19]} c6 {[%emt 0:00:22]} 3. d4 {[%emt 0:00:54]} e4 {[%emt 0:00:12]} 4. d5 {[%emt 0:00:26]} Bb4+ {[%emt 0:00:12]} 5. Bd2 {[%emt 0:00:08]} Qe7 {[%emt 0:00:04]} 6. Bxb4 {[%emt 0:01:42] A20: English Opening: 1...e5.} Qxb4+ {[%emt 0:00:06]} 7. Nc3 {[%emt 0:00:25]} Nf6 {[%emt 0:11:16]} 8. Qd2 {[%emt 0:00:48][%cal Oc3e4]} Qxc4 {[%emt 0:08:05][%cal Rf6d5]} 9. e3 {[%emt 0:02:04] [#]} Qb4 $146 {[%emt 0:00:19]} ({Predecessor:} 9... Qc5 10. Rc1 O-O 11. Nxe4 Nxe4 12. Rxc5 Nxd2 13. Kxd2 d6 14. Rc1 c5 15. Ne2 b5 {½-½ Ludgate,A (2451)-Parmet,D (2274) FICGS W-ch st2 g01 email 2021 (1)}) 10. a3 {[%emt 0:01:27]} Qb6 {[%emt 0:07:16]} 11. Bg2 {[%emt 0:02:28]} cxd5 {[%emt 0:04:07][%cal Od5d4]} 12. Nxd5 {[%emt 0:07:39]} Nxd5 {[%emt 0:00:17]} 13. Qxd5 {[%emt 0:00:05]} O-O {[%emt 0:00:23]} 14. Nh3 {[%emt 0:11:04]} d6 {[%emt 0:16:22]} (14... Qxb2 {is more complex.} 15. O-O d6 16. Ng5 Qe5) 15. Nf4 {[%emt 0:09:15]} Nd7 {[%emt 0:08:36]} 16. Qxe4 {[%emt 0:02:52]} (16. Bxe4 Nf6 17. Qc4 Qa5+ 18. Ke2 (18. b4 $2 Qe5 $19) 18... Qe5 $17) 16... Qxb2 {[%emt 0:02:20]} 17. O-O $1 {[%emt 0:01:31]} Nc5 {[%emt 0:00:46]} 18. Qd5 {[%emt 0:19:23]} Rd8 {[%emt 0:05:30]} 19. Ra2 {[%emt 0:02:07]} Qf6 $36 {[%emt 0:02:42][%mdl 2048] Black fights for an advantage.} 20. Rd2 {[%emt 0:01:35]} Be6 {[%emt 0:02:57]} 21. Qh5 {[%emt 0:06:04]} Qe5 {[%emt 0:08:47]} 22. Qd1 {[%emt 0:10:00]} Bc4 {[%emt 0:02:48]} 23. Re1 {[%emt 0:00:29]} Rac8 {[%emt 0:01:34]} 24. Nd5 {[%emt 0:02:17]} Nb3 {[%emt 0:02:10]} (24... Kh8 $15) 25. f4 {[%emt 0:02:34]} (25. Rd4 $1 $14) 25... Qe8 $15 {[%emt 0:01:24]} 26. Rc2 {[%emt 0:05:15][%cal Oc2c4] Hoping for Rxc4!} b5 {[%emt 0:00:42]} 27. Rc3 {[%emt 0:00:57]} (27. Bf1 $17) 27... Nc5 {[%emt 0:01:17]} (27... Bxd5 $1 $19 {and Black stays clearly on top.} 28. Rxc8 Rxc8 29. Qxd5 Rc1 {[%mdl 64] Deflection} 30. Rxc1 Qxe3+ 31. Kf1 Qxc1+ 32. Kf2 Qc5+ 33. Kf1 Qxd5 34. Bxd5 Nd2+ 35. Ke2 Nc4) 28. Qd4 {[%emt 0:02:29]} Qd7 {[%emt 0:01:49]} 29. f5 {[%emt 0:02:07]} Bxd5 {[%emt 0:03:03]} (29... Qxf5 $2 30. Ne7+ Kh8 31. Nxf5 $18) 30. Bxd5 {[%emt 0:00:27]} Qe7 {[%emt 0:02:25]} ({But not} 30... Qxf5 $6 31. Rf1 Qg5 32. Rxf7 $11 (32. Bxf7+ Kh8 $15)) 31. Rd1 {[%emt 0:01:57]} a5 {[%emt 0:01:47]} 32. e4 {[%emt 0:00:55]} Kf8 {[%emt 0:03:42]} (32... Qf6 $17) 33. Rf1 {[%emt 0:00:49]} (33. Rb1 $11 {keeps the balance.}) 33... Qf6 {[%emt 0:01:37]} 34. Qxf6 {[%emt 0:01:57]} gxf6 {[%emt 0:00:02]} 35. Rb1 {[%emt 0:01:49]} Rb8 {[%emt 0:00:13]} 36. g4 {[%emt 0:00:50]} b4 {[%emt 0:02:10]} 37. axb4 {[%emt 0:00:03]} Rxb4 {[%emt 0:00:10]} 38. Rxb4 {[%emt 0:01:37]} axb4 $17 {[%emt 0:00:02][%cal Ba5b4,Bb4b3,Bb3b2][%mdl 4128] Endgame KRB-KRN} 39. Rc1 {[%emt 0:00:31]} Rb8 {[%emt 0:00:47]} 40. Kf1 {[%emt 0:00:00]} b3 {[%emt 0:00:00] Strongly threatening ...b2.} 41. Ke2 {[%emt 0:12:35]} Rb4 {[%emt 0:05:53]} 42. Rb1 {[%emt 0:06:59]} b2 {[%emt 0:06:37]} ({Not} 42... Nxe4 43. Rxb3 Ra4 44. Bxe4 Rxe4+ 45. Kf3 $11) 43. Ke3 {[%emt 0:02:13]} Kg7 {[%emt 0:00:16]} 44. h3 {[%emt 0:01:51]} h6 {[%emt 0:02:32]} 45. Kd2 {[%emt 0:07:07] [#]} Nxe4+ {[%emt 0:04:00]} (45... Rd4+ $1 $17 46. Kc3 Rd3+ 47. Kxb2 Rxh3) 46. Bxe4 $11 {[%emt 0:00:04]} Rxe4 {[%emt 0:00:04]} 47. Rxb2 $17 {[%emt 0:00:03] [#] KR-KR} h5 $1 {[%emt 0:00:05]} 48. gxh5 {[%emt 0:03:18]} Re5 {[%emt 0:10:37]} (48... Rh4 {simplifies} 49. Rb6 Rxh5 50. Rxd6 Rxf5 51. Rd3 Re5) 49. Rb7 {[%emt 0:00:46]} (49. Rb6 $11) 49... Rxf5 {[%emt 0:00:00]} (49... Rd5+ {simplifies} 50. Ke3 Rxf5 51. Rd7 Rxh5 52. Rxd6 Rxh3+ 53. Ke4 Rh4+) 50. h6+ {[%emt 0:00:15] [#]} Kg6 $1 {[%emt 0:00:04]} 51. h7 {[%emt 0:00:36]} Rh5 {[%emt 0:00:32]} (51... Rd5+ {feels hotter.} 52. Ke3 Rh5 53. Rd7 Rxh3+ 54. Kf4 Rh4+) 52. Rd7 {[%emt 0:00:05]} Rxh7 {[%emt 0:01:03]} 53. Rxd6 {[%emt 0:00:26]} Rxh3 {[%emt 0:00:04]} 54. Ke2 {[%emt 0:00:08]} Kf5 {[%emt 0:01:47]} 55. Rd7 {[%emt 0:00:17]} Ke6 {[%emt 0:00:07]} 56. Ra7 {[%emt 0:00:09]} f5 {[%emt 0:00:12]} 57. Kf2 {[%emt 0:00:36]} Rb3 {[%emt 0:00:26]} 58. Ra5 {[%emt 0:01:24]} Kf6 {[%emt 0:00:06]} 59. Ra7 {[%emt 0:00:05]} Kg6 {[%emt 0:00:06]} 60. Rc7 {[%emt 0:01:28]} Ra3 {[%emt 0:00:23]} 61. Rb7 {[%emt 0:00:02]} f6 {[%emt 0:00:27]} 62. Rb8 {[%emt 0:01:01]} Kg5 {[%emt 0:01:42]} 63. Rb4 {[%emt 0:00:20]} Rh3 {[%emt 0:01:29]} 64. Ra4 {[%emt 0:00:32]} Rh4 {[%emt 0:00:29]} 65. Ra8 {[%emt 0:00:39]} Rb4 {[%emt 0:01:39]} 66. Ra3 {[%emt 0:00:30]} Rb2+ {[%emt 0:02:43]} 67. Kf3 {[%emt 0:00:14]} Rh2 {[%emt 0:00:12]} 68. Kg3 {[%emt 0:00:16] Prevents Rh3+} Rh8 {[%emt 0:00:32]} 69. Ra5 {[%emt 0:00:40]} Re8 {[%emt 0:00:18]} 70. Kf3 {[%emt 0:00:12]} Re4 {[%emt 0:00:33]} 71. Ra8 {[%emt 0:00:12]} Rf4+ {[%emt 0:00:29]} 72. Kg3 {[%emt 0:00:06] White threatens Rg8+ and mate.} Rb4 {[%emt 0:00:10]} 73. Rg8+ {[%emt 0:00:07]} Kh6 {[%emt 0:00:03]} 74. Kf3 {[%emt 0:00:12]} Kh7 {[%emt 0:00:06]} 75. Rg1 {[%emt 0:00:08]} Rh4 {[%emt 0:00:11]} 76. Rg2 {[%emt 0:00:25]} Kh6 {[%emt 0:00:07]} 77. Rg8 {[%emt 0:00:25]} Rh5 {[%emt 0:00:09]} (77... Rc4 $17) 78. Kf4 $11 {[%emt 0:00:31] The position is equal.} Rg5 {[%emt 0:00:04]} 79. Rh8+ {[%emt 0:00:44]} Kg7 {[%emt 0:00:13]} 80. Ra8 {[%emt 0:00:22]} Rh5 {[%emt 0:00:04]} 81. Rb8 {[%emt 0:00:16]} Kf7 {[%emt 0:00:04]} 82. Ra8 {[%emt 0:00:20]} Rg5 {[%emt 0:01:03]} 83. Rb8 {[%emt 0:00:22]} Kg7 {[%emt 0:00:34]} 84. Ra8 {[%emt 0:00:12]} Kg6 {[%emt 0:00:04]} 85. Rg8+ {[%emt 0:00:19]} Kf7 {[%emt 0:00:07]} 86. Rxg5 {[%emt 0:00:30]} fxg5+ {[%emt 0:00:02]} 87. Kxf5 {[%emt 0:00:05]} g4 {[%emt 0:00:01] ( -> ...g3)} 88. Kxg4 {[%emt 0:00:04] White happily takes the draw.   Weighted Error Value: White=0.14 (very precise) /Black=0.14 (very precise)} 1/2-1/2

[Event "European Women-ch 2023"]
[Site "Petrovac"]
[Date "2023.03.19"]
[Round "2.2"]
[White "Mamedjarova, Turkan"]
[Black "Vega Gutierrez, Sabrina"]
[Result "0-1"]
[ECO "D35"]
[WhiteElo "2229"]
[BlackElo "2361"]
[Annotator "TA"]
[PlyCount "87"]
[EventDate "2023.03.15"]
[EventType "swiss"]
[EventCountry "MNE"]
[SourceTitle "playchess.com"]
[Source "ChessBase"]
[SourceQuality "1"]
[TimeControl "40/5400+30:1800+30"]

{[%evp 12,87,20,17,27,22,25,22,0,-16,-17,-24,-24,-33,-24,-24,-27,-22,-27,-30,0,0,0,0,0,0,0,0,0,12,10,6,39,8,34,0,0,0,0,0,0,0,0,0,37,0,-22,-39,0,0,0,0,0,-118,-105,-117,-76,-844,-829,-1150,-1108,-1163,-1141,-29983,0,-951,0,-29983,-29984,-29984,-29981,-29988,-29987,-29987,-29988,-29988,-29988,-29988]} 1. d4 {[%emt 0:00:05]} Nf6 {[%emt 0:00:07]} 2. c4 {[%emt 0:00:14]} e6 {[%emt 0:00:08]} 3. Nc3 {[%emt 0:00:07]} d5 {[%emt 0:00:08]} 4. cxd5 {[%emt 0:00:25]} exd5 {[%emt 0:00:10]} 5. Bg5 {[%emt 0:00:25]} Be7 {[%emt 0:00:08]} 6. e3 {[%emt 0:00:20]} h6 {[%emt 0:00:23]} 7. Bh4 {[%emt 0:01:07]} Bg4 {[%emt 0:00:17] D35: Queen's Gambit Declined: Exchange Variation.} 8. Qb3 {[%emt 0:01:36][%cal Oh4f6] And now Bxf6! would win.} Nbd7 {[%emt 0:00:16]} 9. h3 {[%emt 0:06:10]} Be6 {[%emt 0:00:33] [#] The position is equal.} 10. Bxf6 $146 {[%emt 0:03:41]} ({Predecessor:} 10. Nf3 O-O 11. Be2 Ne4 12. Bxe7 Qxe7 13. O-O Rab8 14. Bd3 Ndf6 15. Rfd1 Rfe8 16. Rac1 {½-½ Milikow,Y (2416)-Dubov,D (2708) Titled Tuesday intern op 31st Jan Late blitz 2023 (2)}) 10... Nxf6 {[%emt 0:00:35]} 11. Bd3 {[%emt 0:04:07]} O-O {[%emt 0:01:29]} 12. Nge2 {[%emt 0:02:13]} c5 {[%emt 0:02:00] [#] Threatens to win with ...c4.} 13. Qc2 {[%emt 0:04:35]} c4 {[%emt 0:19:37]} 14. Bf5 {[%emt 0:00:13]} Qd7 {[%emt 0:01:42]} 15. Bxe6 {[%emt 0:01:53]} fxe6 {[%emt 0:04:15]} 16. a4 {[%emt 0:08:01]} b6 {[%emt 0:02:20][%cal Bb7b6,Bb6b5,Bb5b4,Bb4b3][%mdl 32]} 17. O-O {[%emt 0:05:47]} a6 {[%emt 0:00:37]} 18. e4 {[%emt 0:01:17]} b5 {[%emt 0:08:26]} 19. e5 {[%emt 0:03:23]} Nh7 {[%emt 0:00:06]} 20. f4 {[%emt 0:00:27]} b4 {[%emt 0:01:23]} 21. Nd1 {[%emt 0:03:43]} Rab8 {[%emt 0:05:44]} 22. Ne3 {[%emt 0:03:12]} Rf7 {[%emt 0:01:31]} 23. Kh1 {[%emt 0:02:04]} Nf8 {[%emt 0:02:10]} 24. g4 {[%emt 0:14:14]} b3 {[%emt 0:08:28]} 25. Qb1 {[%emt 0:03:44]} Bb4 {[%emt 0:00:29]} 26. Qd1 {[%emt 0:06:52]} Qd8 {[%emt 0:12:06]} 27. f5 {[%emt 0:05:27]} Qa5 {[%emt 0:12:50]} (27... Qg5 $5 {[%cal Rg5e3]} 28. Nf4 Ng6 29. Nexd5 (29. fxg6 $2 Rxf4 30. a5 Rxf1+ 31. Nxf1 Rf8 $19) 29... Nxf4 30. Nxf4 exf5 $14) 28. h4 {[%emt 0:08:38]} (28. fxe6 $14 Rxf1+ 29. Qxf1 Nxe6 30. Qf5) 28... Bd2 $11 {[%emt 0:06:33]} 29. fxe6 {[%emt 0:03:28]} Nxe6 {[%emt 0:00:02]} (29... Ra7 $5 {[%cal Rd2e3]} 30. Ng2 Nxe6 $11) 30. Rxf7 {[%emt 0:00:48]} Kxf7 {[%emt 0:02:31]} 31. Qf1+ {[%emt 0:00:10]} Kg8 {[%emt 0:00:18] Active counter play!} 32. Qf5 {[%emt 0:00:27]} (32. Nf5 $1 $11 {was the only way to keep the balance.} Qd8 33. Rd1) 32... Bxe3 $17 {[%emt 0:01:37]} 33. Qxe6+ {[%emt 0:00:11]} Kh8 {[%emt 0:00:01] ...Qd2 is the strong threat.} 34. Rf1 $2 {[%emt 0:01:27][%mdl 8192]} (34. Qd6 $17 Qd8 35. Qxd8+ Rxd8 36. Rd1) 34... Qd2 $19 {[%emt 0:00:36]} (34... Qxa4 35. Qd6 (35. Qxd5 Qb4 $11) 35... Rg8 36. Rf8 $14 (36. Qxd5 Qb4 $11)) 35. Qd6 {[%emt 0:04:57]} Rg8 {[%emt 0:00:13]} 36. Ng3 {[%emt 0:02:08]} Bf4 {[%emt 0:02:21]} 37. Ne2 {[%emt 0:00:11]} Be3 {[%emt 0:03:32]} (37... Qxe2 $142 38. Rxf4 c3 39. Qf8 c2 40. Qc5 Qe1+ 41. Kh2 c1=R 42. Qxc1 Qxc1 43. Rf7 Rc8 44. Rf3 Rc2+ 45. Kg3 Qg1+ 46. Kf4 Qxd4+ 47. Kg3 Qg1+ 48. Kf4 Rc4+ 49. Kf5 Qxg4#) 38. Ng3 $1 {[%emt 0:00:11]} Bf4 $40 {[%emt 0:01:26][%mdl 128] [#] Black is up to no good.} (38... c3 $19 39. bxc3 Bf4 40. Qxd5 Bxg3) 39. Ne2 $1 {[%emt 0:00:02][%mdl 64] Deflection} Qxe2 {[%emt 0:00:06][%cal Re2f1] Black mates.} 40. Rxf4 {[%emt 0:00:00]} c3 {[%emt 0:00:00]} 41. Rf6 {[%emt 0:01:11]} Qd1+ {[%emt 0:07:12]} ({Worse is} 41... gxf6 42. Qxf6+ Kh7 43. Qf7+ Kh8 44. Qf6+ Kh7 45. Qf7+ Rg7 46. Qf5+ Kg8 47. Qc8+ Kh7 48. Qf5+ Rg6 49. Qd7+ Kh8 50. Qd8+ Rg8 51. Qf6+ $11) 42. Kh2 {[%emt 0:00:07]} Qd2+ {[%emt 0:00:21]} ({Weaker is} 42... gxf6 43. Qxf6+ Rg7 44. Qf8+ Kh7 45. Qf5+ Kg8 46. Qc8+ Kh7 47. Qf5+ Rg6 48. Qd7+ Kh8 49. Qd8+ Rg8 50. Qf6+ Rg7 51. Qf8+ Kh7 52. Qf5+ $11) 43. Kg3 {[%emt 0:00:13]} cxb2 {[%emt 0:01:04]} ({And not} 43... gxf6 44. Qxf6+ Kh7 45. Qf7+ Rg7 46. Qf5+ Kh8 47. Qf8+ Rg8 48. Qf6+ Kh7 49. Qf7+ Rg7 50. Qf5+ Rg6 51. Qf7+ Rg7 $11) 44. g5 {[%emt 0:00:13] Weighted Error Value: White=0.52/Black=0.37} 0-1

[Event "European Women-ch 2023"]
[Site "Petrovac"]
[Date "2023.03.19"]
[Round "2.3"]
[White "Javakhishvili, Lela"]
[Black "Zimina, Olga"]
[Result "1-0"]
[ECO "D02"]
[WhiteElo "2443"]
[BlackElo "2295"]
[Annotator "TA"]
[PlyCount "111"]
[EventDate "2023.03.15"]
[EventType "swiss"]
[EventCountry "MNE"]
[SourceTitle "playchess.com"]
[Source "ChessBase"]
[SourceQuality "1"]
[TimeControl "40/5400+30:1800+30"]

{[%evp 9,111,0,0,2,1,0,50,28,67,45,66,28,67,62,77,81,82,86,103,75,71,66,85,68,80,85,118,125,130,112,155,148,149,116,112,106,162,173,180,55,54,51,68,55,118,129,223,229,203,212,372,158,158,154,165,172,132,158,256,258,386,361,1067,1060,1026,1026,975,982,955,625,941,377,301,0,273,0,921,888,962,917,861,718,634,514,564,400,1041,1021,859,850,772,684,1035,993,10418,5614,2212,5138,5099,5099,5092,5092,6083,5641]} 1. d4 {[%emt 0:00:05]} d5 {[%emt 0:00:10]} 2. Nf3 {[%emt 0:00:18]} Nf6 {[%emt 0:00:11]} 3. Bf4 {[%emt 0:00:18]} c5 {[%emt 0:00:45]} 4. e3 {[%emt 0:00:07]} Nc6 {[%emt 0:01:21]} 5. Nbd2 {[%emt 0:00:27]} cxd4 {[%emt 0:01:26]} 6. exd4 {[%emt 0:00:06] D02: 1 d4 d5 2 Nf3 sidelines, including 2...Nf6 3 g3 and 2...Nf6 3 Bf4.} Bf5 {[%emt 0:00:52]} 7. Bb5 {[%emt 0:00:58]} Bd7 {[%emt 0:07:37]} (7... e6 $11) 8. c3 {[%emt 0:08:24] White is slightly better.} g6 {[%emt 0:01:17]} 9. O-O {[%emt 0:01:18]} Bg7 {[%emt 0:01:41] [#]} 10. Bd3 $146 {[%emt 0:02:27]} ({Predecessor:} 10. h3 O-O 11. Re1 Re8 12. a4 a6 13. Bf1 Bf5 14. Ne5 Rc8 15. Nxc6 Rxc6 16. a5 {1-0 Ushenina,A (2444)-Krush,I (2430) Hengshui IMSA rapid (Women) 2019 (3)}) 10... Bf5 {[%emt 0:00:16]} 11. Bxf5 {[%emt 0:05:36]} gxf5 {[%emt 0:00:10]} 12. Ne5 {[%emt 0:01:13]} Qb6 {[%emt 0:03:56]} 13. Nxc6 {[%emt 0:05:51]} bxc6 {[%emt 0:02:17]} 14. Qc2 {[%emt 0:11:29]} O-O {[%emt 0:08:23]} 15. Nb3 {[%emt 0:00:22]} e6 {[%emt 0:03:39]} 16. Nc5 {[%emt 0:01:15]} a5 {[%emt 0:02:24]} 17. Rae1 {[%emt 0:03:18]} Kh8 {[%emt 0:02:29] [#]} 18. Re3 $1 {[%emt 0:04:27] Black is weak on the dark squares} Rg8 {[%emt 0:10:25]} 19. Rh3 {[%emt 0:01:41] Against Nh5} Ra7 {[%emt 0:07:06]} 20. Re1 {[%emt 0:08:26]} Qd8 {[%emt 0:04:27]} 21. Ree3 {[%emt 0:03:52] White has more active pieces.} Bf8 {[%emt 0:03:37]} 22. Nd3 {[%emt 0:05:10]} Ng4 {[%emt 0:01:50]} (22... Bd6 $16 {was called for.}) 23. Reg3 $18 {[%emt 0:03:40]} Bd6 {[%emt 0:01:10]} 24. Ne5 {[%emt 0:03:31]} (24. Bxd6 $18 Qxd6 25. Qd2) 24... Bxe5 $14 {[%emt 0:15:27]} 25. dxe5 {[%emt 0:00:31]} Rb7 {[%emt 0:04:22]} 26. b3 {[%emt 0:01:46]} Rg6 {[%emt 0:10:18]} (26... Qb8 $14) 27. Rh5 $16 {[%emt 0:04:08]} f6 {[%emt 0:00:19]} (27... Qb8 $16) 28. exf6 {[%emt 0:02:25]} Kg8 {[%emt 0:03:09]} 29. Qe2 {[%emt 0:01:35]} Qd7 {[%emt 0:02:34]} (29... Qc8 30. f7+ Rxf7) 30. Rg5 {[%emt 0:09:28]} (30. f3 $18 {is more deadly.} Nxf6 31. Rh6) 30... Kf7 {[%emt 0:00:27]} 31. h4 {[%emt 0:03:38]} a4 {[%emt 0:00:42]} 32. R3xg4 {[%emt 0:02:41]} (32. bxa4 $2 Rb1+ $19) (32. Rxg6 $6 hxg6 33. b4 (33. bxa4 $2 Rb1+ $19) 33... Qd8 $14) 32... fxg4 {[%emt 0:00:18]} 33. Qxg4 {[%emt 0:00:16]} Kxf6 {[%emt 0:01:13]} (33... Qe8 $16) 34. Be5+ $18 {[%emt 0:01:03]} (34. bxa4 $6 Rxg5 35. Bxg5+ (35. Qxg5+ Kf7 $16) 35... Kf7 $16) 34... Kf7 {[%emt 0:00:14]} (34... Ke7 $142 35. Rxg6 (35. bxa4 Ke8 $16) (35. Qxa4 Qc8 $16) 35... hxg6) 35. Qh5 {[%emt 0:02:12]} (35. bxa4 Qe7 $16) 35... Kg8 {[%emt 0:00:47]} (35... Kf8 36. Rxg6 (36. bxa4 Qf7 $14) 36... hxg6 37. Qh8+ (37. Qxg6 Qf7 $16) 37... Kf7) 36. Rxg6+ {[%emt 0:00:24]} (36. bxa4 Qf7 $14) 36... hxg6 {[%emt 0:00:01]} 37. Qxg6+ {[%emt 0:00:48][%mdl 4096] Endgame KQR-KQB} Kf8 {[%emt 0:00:01]} 38. Qh6+ {[%emt 0:01:03]} (38. bxa4 Qf7 39. Qh6+ (39. Bd6+ Ke8 $16) 39... Ke8 $18) 38... Kg8 {[%emt 0:00:36]} 39. Qh8+ {[%emt 0:01:41]} Kf7 {[%emt 0:00:01]} 40. Qh5+ {[%emt 0:00:00]} (40. h5 $142 {Hoping for Qg7+.} axb3 41. axb3) 40... Kf8 {[%emt 0:00:00]} 41. Qh6+ $2 {[%emt 0:03:11]} ({Don't play} 41. bxa4 $6 Qf7 42. Qh8+ Qg8 $18) (41. Qh8+ Kf7 42. b4 Qe7 $18) (41. g4 $18 Qf7 42. Qh6+ (42. bxa4 $2 Qxh5 43. gxh5 Ra7 $19) 42... Ke8 43. b4 (43. bxa4 Rb2 $16)) 41... Ke8 $2 {[%emt 0:05:49][%mdl 8192]} (41... Kg8 $1 $11 42. b4 Rb5) 42. Qh8+ $2 {[%emt 0:00:43]} ({Resist} 42. bxa4 $6 Qf7 43. Bg3 Rb1+ 44. Kh2 Rb7 45. Qh8+ Qf8) (42. b4) 42... Kf7 $1 {[%emt 0:00:47]} 43. h5 {[%emt 0:00:42] [#] Strongly threatening Qg7+.} axb3 {[%emt 0:00:28]} 44. axb3 {[%emt 0:00:09]} Qe7 {[%emt 0:06:56]} 45. Qh7+ {[%emt 0:06:43]} Kf8 {[%emt 0:04:35]} 46. Qxe7+ {[%emt 0:06:48]} Kxe7 {[%emt 0:00:07] KR-KB} 47. b4 {[%emt 0:00:05] Threatens to win with g4.} Kf7 {[%emt 0:03:02]} (47... d4 $142 48. Bxd4 (48. cxd4 Kf7 $18) 48... Rb5) 48. g4 {[%emt 0:00:35] aiming for g5. White is clearly winning.} Kg8 {[%emt 0:00:05]} 49. Kg2 {[%emt 0:00:44]} Kh7 {[%emt 0:00:15]} 50. Kf3 {[%emt 0:02:42]} Rf7+ {[%emt 0:01:23]} 51. Ke3 {[%emt 0:00:29] f4 would be deadly.} Kh6 {[%emt 0:00:15]} 52. f4 {[%emt 0:01:01] White wants to mate with Kd4.} Rf8 {[%emt 0:00:33]} 53. Kd4 {[%emt 0:02:29]} Rg8 {[%emt 0:00:05]} 54. Kc5 {[%emt 0:02:33]} Rxg4 {[%emt 0:00:07]} 55. Kxc6 {[%emt 0:00:04] b5 would kill now.} Kxh5 {[%emt 0:00:30]} 56. b5 {[%emt 0:00:06] An exciting game.   Weighted Error Value: White=0.72/Black=0.42} 1-0

[Event "European Women-ch 2023"]
[Site "Petrovac"]
[Date "2023.03.19"]
[Round "2.3"]
[White "Sargsyan, Anna M."]
[Black "Donghvani, Nia"]
[Result "1-0"]
[ECO "B40"]
[WhiteElo "2371"]
[BlackElo "2025"]
[Annotator "TA"]
[PlyCount "65"]
[EventDate "2023.03.15"]
[EventType "swiss"]
[EventCountry "MNE"]
[SourceTitle "playchess.com"]
[Source "ChessBase"]
[SourceQuality "1"]
[TimeControl "40/5400+30:1800+30"]

{[%evp 16,65,0,-16,0,0,0,0,9,0,11,0,0,0,43,57,70,51,118,135,137,145,127,77,85,37,258,233,241,217,471,473,466,463,436,360,697,688,1158,1130,1115,1037,964,699,29984,29985,29985,29986,29997,29998,29998,29999]} 1. e4 {[%emt 0:00:13]} c5 {[%emt 0:00:11]} 2. Nf3 {[%emt 0:00:06]} e6 {[%emt 0:00:43]} 3. d4 {[%emt 0:01:21]} cxd4 {[%emt 0:00:11]} 4. Nxd4 {[%emt 0:00:07]} Nf6 {[%emt 0:00:22]} 5. Bd3 {[%emt 0:00:19]} Nc6 {[%emt 0:01:37]} 6. Nxc6 {[%emt 0:00:07]} bxc6 {[%emt 0:00:04]} 7. O-O {[%emt 0:00:06]} d5 {[%emt 0:05:39]} 8. e5 {[%emt 0:04:34]} Nd7 {[%emt 0:00:04]} 9. Re1 {[%emt 0:01:25]} g6 {[%emt 0:05:59] B40: Sicilian: 2...e6, Unusual lines.} 10. Nd2 {[%emt 0:01:27]} Bg7 {[%emt 0:00:15]} 11. Nf3 {[%emt 0:00:07]} Qc7 {[%emt 0:02:38][%cal Rd7e5] The position is equal.} 12. Bf4 {[%emt 0:00:23]} O-O {[%emt 0:03:17]} 13. h4 {[%emt 0:01:01][%cal Bh2h4,Bh4h5][%mdl 32] [#]} c5 $146 {[%emt 0:07:09]} ({Predecessor:} 13... a5 14. c3 Ba6 15. Bc2 Rab8 16. Rb1 Rb6 17. h5 Rfb8 18. b3 c5 19. Re3 c4 {1-0 Birke,A (2232)-Neyman,I Oberliga Ost-A 9900 1999 (8.4)}) 14. c3 {[%emt 0:00:10][%cal Oh4h5]} Bb7 {[%emt 0:00:13] [#]} 15. h5 $1 {[%emt 0:00:08]} Rae8 {[%emt 0:11:53]} (15... Rab8 16. h6) 16. Qd2 {[%emt 0:09:40]} Nb6 {[%emt 0:29:39]} (16... Rb8 $14) 17. Nh2 $16 {[%emt 0:08:11] White is more active.} Nc4 {[%emt 0:11:29]} 18. Bxc4 {[%emt 0:07:20]} dxc4 {[%emt 0:00:03]} 19. Ng4 {[%emt 0:00:09]} (19. h6 $142 Bh8 20. Qe2) 19... Rd8 {[%emt 0:00:27]} 20. Qc1 {[%emt 0:00:09]} ({White should try} 20. Qe2 $16) 20... Qc6 $2 {[%emt 0:04:10] Loses the game.} ({Black should play} 20... Rd3 $1 $14) 21. f3 $18 {[%emt 0:01:14] Hoping for Bh6.} Rd3 {[%emt 0:08:25][%cal Od3f3]} 22. Re4 {[%emt 0:04:01] Bh6 would be deadly.} (22. Bh6 $2 Rxf3 23. Qd2 (23. Bxg7 $2 Rf1+ {[%mdl 64] Discovered Attack} 24. Rxf1 Qxg2#) 23... Rg3 $19) 22... f6 $2 {[%emt 0:00:20]} (22... gxh5 $2 23. Bh6 Qd7 24. Bxg7 $18) (22... Rfd8 23. Bg5 (23. Rxc4 Rxf3 24. Qc2 Rdd3 $19) 23... Qd7) 23. exf6 {[%emt 0:00:47]} (23. Rxc4 $2 Rxf3 24. Qd2 (24. gxf3 $2 Qxf3 25. Ne3 fxe5 $19) 24... fxe5 $19) 23... Bxf6 {[%emt 0:00:05]} 24. hxg6 {[%emt 0:00:20]} (24. Rxc4 $2 Rxf3 25. Nxf6+ (25. gxf3 $2 Qxf3 26. Nxf6+ Rxf6 $19) 25... Rxf6 26. gxf3 Qxf3 $19) 24... Qd7 {[%emt 0:01:59]} 25. gxh7+ {[%emt 0:07:20]} ({Not} 25. Rxc4 h5 26. Nf2 Rd5 $18) 25... Kxh7 $2 {[%emt 0:00:45] [#]} (25... Qxh7 26. Rxe6 (26. Rxc4 Bxf3 27. Be5 Qg6 $16) 26... Qg6) 26. Bd6 $1 {[%emt 0:08:13][%mdl 512] Qh6+ would kill now.} Qxd6 {[%emt 0:03:57]} (26... Bg7 27. Bxf8) 27. Qh6+ {[%emt 0:00:21]} (27. Rxc4 $2 {too greedy.} Bg7 28. Qe1 Kg8 $19) 27... Kg8 {[%emt 0:00:03]} 28. Nxf6+ {[%emt 0:00:08]} Kf7 {[%emt 0:00:22]} 29. Rf4 {[%emt 0:00:44][%cal Rh6h7]} Rd1+ {[%emt 0:00:55]} 30. Rxd1 {[%emt 0:00:11] White mates.} Qxd1+ {[%emt 0:00:03]} 31. Kh2 {[%emt 0:00:19][%cal Rh6h7]} Rc8 {[%emt 0:01:32]} 32. Qh7+ {[%emt 0:00:15][%mdl 64] Skewer} Kf8 {[%emt 0:00:01]} 33. Nd7+ {[%emt 0:00:07] A cool game by Sargsyan.   Weighted Error Value: White=0.36/Black=0.95} 1-0